bitfinex-derivatives/quotes_BTCF0:USTF0_20250528
["timestamp","ask_amount","ask_price","bid_price","bid_amount"]
[1748412949940,5.4248,108810.0,108800.0,1.7934117]
[1748412950128,5.456,108810.0,108800.0,2.2289317]
[1748412950334,5.6397158,108810.0,108800.0,1.7934117]
[1748412950529,5.6397158,108810.0,108800.0,2.23361379]
[1748412950744,5.456,108810.0,108800.0,2.23361379]
[1748412950931,5.456,108810.0,108800.0,2.23349379]
[1748412951637,5.456,108810.0,108800.0,1.69233379]
[1748412951834,5.456,108810.0,108800.0,2.23341379]
[1748412952238,5.456,108810.0,108800.0,2.23141379]
[1748412952431,5.6407156,108810.0,108800.0,1.79601379]
[1748412952745,5.6407156,108810.0,108800.0,2.22993379]
[1748412952950,5.6407156,108810.0,108800.0,0.72981379]
[1748412953149,5.6407156,108810.0,108800.0,0.72993379]
[1748412953444,5.6407156,108810.0,108800.0,2.22993379]
[1748412953644,5.6417156,108810.0,108800.0,0.72993379]
[1748412953846,5.6417156,108810.0,108800.0,0.29401379]
[1748412954039,5.6417156,108810.0,108800.0,0.72969379]
[1748412954239,5.6417156,108810.0,108800.0,0.72965379]
[1748412955540,4.53680551,108810.0,108800.0,1.15722011]
[1748412955737,0.45565551,108810.0,108800.0,1.79452011]
[1748412955948,0.0311,108840.0,108830.0,0.1836818]
[1748412955949,0.4549,108840.0,108830.0,0.1836818]
[1748412956242,0.4549,108840.0,108830.0,1.90801096]
[1748412956642,0.4549,108840.0,108830.0,1.93973096]
[1748412956842,0.4549,108840.0,108830.0,1.93961096]
[1748412957038,0.0941,108840.0,108830.0,1.93973096]
[1748412957233,0.09422,108840.0,108830.0,1.93973096]
[1748412957543,0.09522,108840.0,108830.0,1.95348666]
[1748412957747,0.2798849,108840.0,108830.0,1.95348666]
[1748412957947,0.6406849,108840.0,108830.0,1.8203975]
[1748412958254,0.6406849,108840.0,108830.0,1.7883975]
[1748412958440,0.6406849,108840.0,108830.0,1.2474375]
[1748412958643,0.6406849,108840.0,108830.0,1.7882775]
[1748412958946,0.6406849,108840.0,108830.0,1.7881575]
[1748412959147,0.6406849,108840.0,108830.0,1.7882775]
[1748412959457,0.6406849,108840.0,108830.0,0.1975575]
[1748412959642,0.6406849,108840.0,108830.0,0.7381575]
[1748412959840,0.68201629,108840.0,108830.0,0.7380375]
[1748412960053,0.77377406,108840.0,108830.0,0.7381575]
[1748412960252,0.81514209,108840.0,108830.0,0.1975575]
[1748412960443,0.81514209,108840.0,108830.0,0.7380375]
[1748412961248,0.81504602,108840.0,108830.0,0.7380375]
[1748412961451,0.81504602,108840.0,108830.0,0.1195557]
[1748412961751,0.8577112,108840.0,108830.0,0.0138757]
[1748412961939,0.8577112,108840.0,108830.0,0.1194357]
[1748412962135,0.8577112,108840.0,108830.0,0.0138757]
[1748412962443,0.1836818,108830.0,108820.0,0.18383623]
[1748412962644,0.8257081,108830.0,108820.0,0.72431623]
[1748412963148,0.8257081,108830.0,108820.0,0.72443623]
[1748412963545,0.8257081,108830.0,108820.0,0.10693753]
[1748412963852,0.88250769,108830.0,108820.0,0.54157753]
[1748412964244,0.88250769,108830.0,108820.0,0.00125753]
[1748412964245,0.83984251,108830.0,108820.0,0.00125753]
[1748412964458,0.79864535,108830.0,108820.0,0.00213753]
[1748412964750,0.93173451,108830.0,108820.0,0.00213753]
[1748412965139,0.9316656,108830.0,108820.0,0.00113753]
[1748412965546,0.1836987,108820.0,108810.0,0.00137855]
[1748412965745,0.8729372,108820.0,108810.0,0.00137855]
[1748412966443,0.8729372,108820.0,108810.0,0.18509415]
[1748412967244,0.91763468,108820.0,108810.0,0.18509415]
[1748412967451,0.83373415,108820.0,108810.0,0.18509415]
[1748412967947,0.77678786,108820.0,108810.0,0.18509415]
[1748412968147,0.86163414,108820.0,108810.0,0.18509415]
[1748412968351,0.91856081,108820.0,108810.0,0.18509415]
[1748412968645,0.91856081,108820.0,108810.0,0.00137855]
[1748412968850,0.83471453,108820.0,108810.0,0.00137855]
[1748412969153,0.83471453,108820.0,108810.0,0.18509415]
[1748412969356,0.87586851,108820.0,108810.0,0.18509415]
[1748412970053,1.17974184,108820.0,108810.0,0.18509415]
[1748412971154,0.14135398,108820.0,108810.0,0.54589415]
[1748412971348,0.32505248,108820.0,108810.0,0.57769415]
[1748412971554,0.68585248,108820.0,108810.0,0.21689415]
[1748412971950,0.68585248,108820.0,108810.0,0.21701415]
[1748412972356,0.68385248,108820.0,108810.0,0.22201415]
[1748412972951,0.68385248,108820.0,108810.0,0.22001415]
[1748412973148,0.72503235,108820.0,108810.0,0.22101415]
[1748412973452,0.68385248,108820.0,108810.0,0.22101415]
[1748412974054,0.68285248,108820.0,108810.0,0.21801415]
[1748412974258,0.68285248,108820.0,108810.0,0.21901415]
[1748412974455,0.81594164,108820.0,108810.0,0.21901415]
[1748412974652,0.72366466,108820.0,108810.0,0.62301415]
[1748412974857,0.72366466,108820.0,108810.0,0.00337855]
[1748412975043,0.95654115,108820.0,108810.0,0.00349855]
[1748412975350,0.95654115,108820.0,108810.0,0.00337855]
[1748412975548,0.95654115,108820.0,108810.0,0.00349855]
[1748412975947,0.95655306,108820.0,108810.0,0.00337855]
[1748412976157,0.95655306,108820.0,108810.0,0.00349855]
[1748412976456,0.1837154,108810.0,108800.0,0.00013753]
[1748412976647,0.80824212,108810.0,108800.0,0.43653753]
[1748412977256,0.85099605,108810.0,108800.0,0.43653753]
[1748412977455,0.79397643,108810.0,108800.0,0.43653753]
[1748412977657,0.79597643,108810.0,108800.0,0.43665753]
[1748412978546,0.79897643,108810.0,108800.0,0.43765753]
[1748412979857,0.83067643,108810.0,108800.0,0.44213962]
[1748412980057,0.83067643,108810.0,108800.0,0.00573962]
[1748412980253,0.7879225,108810.0,108800.0,0.44181962]
[1748412980454,0.7879225,108810.0,108800.0,0.62555202]
[1748412980650,0.7879225,108810.0,108800.0,0.44181962]
[1748412981264,0.78788106,108810.0,108800.0,0.44181962]
[1748412982359,0.78788106,108810.0,108800.0,0.44157962]
[1748412982663,0.6547919,108810.0,108800.0,0.44157962]
[1748412982872,0.78788106,108810.0,108800.0,0.44157962]
[1748412984063,0.6547919,108810.0,108800.0,0.62531192]
[1748412984252,0.78788106,108810.0,108800.0,0.62531192]
[1748412984763,0.78788106,108810.0,108800.0,0.47187962]
[1748412984965,0.78788106,108810.0,108800.0,0.65561192]
[1748412985163,0.6547919,108810.0,108800.0,0.21977192]
[1748412985366,0.6140154,108810.0,108800.0,0.25227192]
[1748412987464,0.6120154,108810.0,108800.0,0.25227192]
[1748412987659,0.6130154,108810.0,108800.0,0.33396113]
[1748412987854,0.6120154,108810.0,108800.0,0.33296113]
[1748412988259,0.6120154,108810.0,108800.0,0.38123717]
[1748412990071,0.6120154,108810.0,108800.0,0.38126103]
[1748412990659,0.6120154,108810.0,108800.0,0.39293092]
[1748412992869,0.78597253,108810.0,108800.0,0.13489657]
[1748412993067,1.14677253,108810.0,108800.0,0.08659667]
[1748412993263,1.14677253,108810.0,108800.0,0.00473962]
[1748412993466,1.14677253,108810.0,108800.0,0.00461962]
[1748412993660,1.14677253,108810.0,108800.0,0.00473962]
[1748412994274,1.14677253,108810.0,108800.0,0.13498203]
[1748412997879,1.14677253,108810.0,108800.0,0.13486203]
[1748412998064,1.14677253,108810.0,108800.0,0.13498203]
[1748412998263,1.1467962,108810.0,108800.0,0.13499049]
[1748412998680,1.1560979,108810.0,108800.0,0.13499049]
[1748413001480,1.1467962,108810.0,108800.0,0.13499049]
[1748413001678,1.18963955,108810.0,108800.0,0.13499049]
[1748413002376,1.19878351,108810.0,108800.0,0.13499049]
[1748413002778,1.19881413,108810.0,108800.0,0.13499049]
[1748413005679,1.19881413,108810.0,108800.0,0.08659667]
[1748413005879,1.30896419,108810.0,108800.0,0.08659667]
[1748413006469,1.30896419,108810.0,108800.0,0.00473962]
[1748413006873,1.29982023,108810.0,108800.0,0.00473962]
[1748413007074,1.29982736,108810.0,108800.0,0.00473962]
[1748413009681,1.17820775,108810.0,108800.0,0.03713962]
[1748413011182,1.17820775,108810.0,108800.0,0.00473962]
[1748413011384,1.17817877,108810.0,108800.0,0.00473962]
[1748413011588,1.29979838,108810.0,108800.0,0.00473962]
[1748413013086,1.356818,108810.0,108800.0,0.00473962]
[1748413013282,1.356818,108810.0,108800.0,0.00461962]
[1748413013686,1.356818,108810.0,108800.0,0.00473962]
[1748413015486,1.27802085,108810.0,108800.0,0.03583962]
[1748413015680,1.23517389,108810.0,108800.0,0.03583962]
[1748413016185,1.17815427,108810.0,108800.0,0.03583962]
[1748413016386,1.3567935,108810.0,108800.0,0.00473962]
[1748413017891,1.3567935,108810.0,108800.0,0.03583962]
[1748413018095,1.3567935,108810.0,108790.0,0.14185876]
[1748413018096,0.1837325,108800.0,108790.0,0.14185876]
[1748413018290,0.80203642,108800.0,108790.0,0.0652]
[1748413018989,0.80203642,108800.0,108790.0,0.19547521]
[1748413019194,0.80211039,108800.0,108790.0,0.19547521]
[1748413019695,0.80213012,108800.0,108790.0,0.19548138]
[1748413021097,0.80313012,108800.0,108790.0,0.19548138]
[1748413021288,0.80413012,108800.0,108790.0,0.22338138]
[1748413021596,0.80513012,108800.0,108790.0,0.22338138]
[1748413022101,0.80513012,108800.0,108790.0,0.40713068]
[1748413022397,0.80513012,108800.0,108790.0,0.22338138]
[1748413022594,0.80513012,108800.0,108790.0,0.2768493]
[1748413022791,0.80513012,108800.0,108790.0,0.0931]
[1748413024595,0.80513012,108800.0,108790.0,0.09758209]
[1748413026886,0.80513012,108800.0,108790.0,0.28133149]
[1748413028199,0.76422608,108800.0,108790.0,0.28133149]
[1748413028396,0.80514233,108800.0,108790.0,0.28133149]
[1748413029289,0.80514233,108800.0,108790.0,0.09758209]
[1748413029690,0.80514233,108800.0,108790.0,0.28133149]
[1748413032085,0.80514233,108800.0,108790.0,0.09758209]
[1748413032595,0.80516027,108800.0,108790.0,0.22788267]
[1748413032894,0.80516027,108800.0,108790.0,0.23938472]
[1748413033300,0.80516027,108800.0,108790.0,0.42313402]
[1748413033501,0.80516027,108800.0,108790.0,0.23938472]
[1748413033801,0.80516027,108800.0,108790.0,0.44127859]
[1748413033999,0.80516027,108800.0,108790.0,0.35120881]
[1748413034200,0.80516027,108800.0,108790.0,0.29486819]
[1748413034397,0.80516027,108800.0,108790.0,0.53495811]
[1748413034597,0.80516124,108800.0,108790.0,0.53496003]
[1748413035905,0.80516124,108800.0,108790.0,0.44128051]
[1748413036301,0.80516124,108800.0,108790.0,0.54675494]
[1748413036904,0.76422608,108800.0,108790.0,0.44314644]
[1748413037096,0.80515831,108800.0,108790.0,0.54675939]
[1748413037296,0.80515831,108800.0,108790.0,0.51415939]
[1748413039108,0.6835387,108800.0,108790.0,0.51415939]
[1748413039400,0.80515831,108800.0,108790.0,0.78118434]
[1748413039711,0.80515831,108800.0,108790.0,0.83752496]
[1748413040801,0.80515831,108800.0,108790.0,0.87487615]
[1748413040991,0.80515831,108800.0,108790.0,0.93121677]
[1748413041396,0.80517512,108800.0,108790.0,0.87605446]
[1748413041705,0.80517512,108800.0,108790.0,0.82760382]
[1748413041908,0.80517512,108800.0,108790.0,0.67757139]
[1748413042606,0.80517512,108800.0,108790.0,0.24873139]
[1748413042795,0.80517512,108800.0,108790.0,0.67753139]
[1748413043602,0.80517512,108800.0,108790.0,0.64493139]
[1748413044499,0.80517512,108800.0,108790.0,0.21613139]
[1748413044699,0.80517512,108800.0,108790.0,0.64481139]
[1748413045099,0.80517512,108800.0,108790.0,0.43316209]
[1748413045298,0.8480389,108800.0,108790.0,0.43316209]
[1748413045500,0.72641929,108800.0,108790.0,0.18823139]
[1748413045805,0.68355551,108800.0,108790.0,0.64487139]
[1748413046105,0.68355551,108800.0,108790.0,0.67797139]
[1748413046511,0.68355551,108800.0,108790.0,0.799591]
[1748413046512,0.65055551,108800.0,108790.0,0.799591]
[1748413046701,0.65055551,108800.0,108790.0,0.86508551]
[1748413047007,0.65055551,108800.0,108790.0,0.7434659]
[1748413047600,0.64855551,108800.0,108790.0,0.7434659]
[1748413048207,0.60760647,108800.0,108790.0,0.7434659]
[1748413048506,0.60660647,108800.0,108790.0,0.7444659]
[1748413048709,0.60660647,108800.0,108790.0,0.7443459]
[1748413048710,0.64755156,108800.0,108790.0,0.7443459]
[1748413049407,0.60660647,108800.0,108790.0,0.7443459]
[1748413049605,0.64754628,108800.0,108790.0,0.7443459]
[1748413049807,0.64754688,108800.0,108790.0,0.7443459]
[1748413049999,0.60660647,108800.0,108790.0,0.7443459]
[1748413051100,0.57480647,108800.0,108790.0,1.00631088]
[1748413051303,0.21400647,108800.0,108790.0,1.00631088]
[1748413051502,0.21400647,108800.0,108790.0,0.94997026]
[1748413051704,0.21400647,108800.0,108790.0,1.00511718]
[1748413051909,0.21400647,108800.0,108790.0,1.07554949]
[1748413052210,0.21400647,108800.0,108790.0,1.02040257]
[1748413052401,0.21400647,108800.0,108790.0,1.02140257]
[1748413053098,0.69642608,108800.0,108790.0,1.00342033]
[1748413053299,0.72912608,108800.0,108790.0,0.93310802]
[1748413053511,0.72912608,108800.0,108790.0,0.98962621]
[1748413053810,0.72912608,108800.0,108790.0,0.73554302]
[1748413054017,0.72912608,108800.0,108790.0,0.73538682]
[1748413054312,0.72912608,108800.0,108790.0,0.92025622]
[1748413054503,0.72912608,108800.0,108790.0,0.73650682]
[1748413055508,0.72912608,108800.0,108790.0,0.64291345]
[1748413056716,0.72912608,108800.0,108790.0,0.73650682]
[1748413056911,0.72912608,108800.0,108790.0,0.66828428]
[1748413057519,0.72912608,108800.0,108790.0,0.85203378]
[1748413058107,0.72912608,108800.0,108790.0,0.85203633]
[1748413058511,0.77005607,108800.0,108790.0,0.10968209]
[1748413058816,0.77005607,108800.0,108790.0,0.53728209]
[1748413059118,0.77005607,108800.0,108790.0,0.53740209]
[1748413059710,0.77005607,108800.0,108790.0,0.66757092]
[1748413059925,0.77005607,108800.0,108790.0,0.66745092]
[1748413060225,0.77005607,108800.0,108790.0,0.53728209]
[1748413060417,0.77205607,108800.0,108790.0,0.53428209]
[1748413060614,0.77405607,108800.0,108790.0,0.53428209]
[1748413062022,0.77405607,108800.0,108790.0,0.61617111]
[1748413062206,0.77405607,108800.0,108790.0,0.53428209]
[1748413062522,0.77405673,108800.0,108790.0,0.66457162]
[1748413065018,0.77405673,108800.0,108790.0,0.84832112]
[1748413066424,0.77405673,108800.0,108790.0,0.66457162]
[1748413066809,0.77405753,108800.0,108790.0,0.13489459]
[1748413067015,0.77405753,108800.0,108780.0,0.15162801]
[1748413067016,0.1837495,108790.0,108780.0,0.08342174]
[1748413067228,0.96806637,108790.0,108780.0,0.00151645]
[1748413067526,1.72526637,108790.0,108780.0,5e-08]
[1748413067714,0.1837833,108770.0,108760.0,0.16760203]
[1748413067915,1.02700291,108770.0,108760.0,0.64340823]
[1748413068222,1.12350291,108770.0,108760.0,0.53147883]
[1748413068427,1.12350291,108770.0,108760.0,0.71515903]
[1748413068615,1.12350291,108770.0,108760.0,0.53135883]
[1748413068933,1.12350291,108770.0,108760.0,0.53147883]
[1748413069116,1.12350291,108770.0,108760.0,0.53447883]
[1748413069316,1.12350291,108770.0,108760.0,0.72276112]
[1748413070026,1.12350291,108770.0,108760.0,0.53896092]
[1748413070223,1.12350291,108770.0,108760.0,0.53884092]
[1748413070416,1.12350291,108770.0,108760.0,0.72264082]
[1748413070616,1.12450291,108770.0,108760.0,0.72264082]
[1748413070831,1.12457688,108770.0,108760.0,0.78254082]
[1748413071017,1.00295727,108770.0,108760.0,0.81404082]
[1748413071223,1.00195727,108770.0,108760.0,0.81088082]
[1748413071617,1.00195727,108770.0,108760.0,0.81084082]
[1748413071829,1.00195727,108770.0,108760.0,0.82457825]
[1748413072213,1.00195727,108770.0,108760.0,0.82477825]
[1748413074121,1.00195727,108770.0,108760.0,0.82457825]
[1748413074820,1.00195727,108770.0,108760.0,0.79307825]
[1748413075226,1.12357688,108770.0,108760.0,0.79307825]
[1748413075527,1.12357688,108770.0,108760.0,0.76107825]
[1748413075727,1.12357688,108770.0,108760.0,0.73317825]
[1748413075924,1.12357688,108770.0,108760.0,0.73325825]
[1748413076420,1.12357688,108770.0,108760.0,0.30605825]
[1748413076628,1.12357688,108770.0,108760.0,0.73321825]
[1748413076811,1.12357688,108770.0,108760.0,0.73309825]
[1748413077014,1.12357688,108770.0,108760.0,0.73321825]
[1748413077921,1.12357688,108770.0,108760.0,0.73309825]
[1748413081128,1.12357688,108770.0,108760.0,0.76109825]
[1748413082135,1.12357688,108770.0,108760.0,0.33405825]
[1748413082333,1.12357688,108770.0,108760.0,0.02017835]
[1748413082533,1.12350291,108770.0,108760.0,0.73189825]
[1748413082916,1.12350291,108770.0,108760.0,0.73177825]
[1748413083726,1.12350291,108770.0,108760.0,0.73189825]
[1748413084039,1.12357688,108770.0,108760.0,0.73189825]
[1748413084233,1.12350291,108770.0,108760.0,0.73189825]
[1748413084729,1.0018833,108770.0,108760.0,0.73189825]
[1748413084926,1.12350291,108770.0,108760.0,0.73189825]
[1748413085228,1.12350291,108770.0,108760.0,0.73225825]
[1748413085432,1.12357688,108770.0,108760.0,0.76025825]
[1748413085733,1.12350291,108770.0,108760.0,0.76025825]
[1748413088335,1.12350291,108770.0,108760.0,0.73225825]
[1748413088529,1.12350291,108770.0,108760.0,0.02017835]
[1748413088831,1.12350291,108770.0,108760.0,0.54813835]
[1748413091231,1.16433861,108770.0,108760.0,0.54813835]
[1748413091432,1.16433861,108770.0,108760.0,0.73193825]
[1748413092437,1.16433861,108770.0,108760.0,0.54813835]
[1748413092944,1.0018833,108770.0,108760.0,0.73193825]
[1748413093239,1.00195727,108770.0,108760.0,0.75993825]
[1748413093443,1.00195727,108770.0,108760.0,0.82363825]
[1748413094141,0.64115727,108770.0,108760.0,0.82363825]
[1748413094935,0.64115727,108770.0,108760.0,0.9536166]
[1748413095140,0.76277688,108770.0,108760.0,0.9536166]
[1748413096139,0.80369207,108770.0,108760.0,0.9536166]
[1748413096343,0.80369207,108770.0,108760.0,0.9207166]
[1748413097234,0.80369207,108770.0,108760.0,0.9772072]
[1748413097543,0.80369207,108770.0,108760.0,0.7934073]
[1748413097738,0.80369207,108770.0,108760.0,0.7626073]
[1748413097942,0.80369207,108770.0,108760.0,0.7061167]
[1748413098243,0.80369207,108770.0,108760.0,0.7626073]
[1748413098939,0.80369207,108770.0,108760.0,0.7346073]
[1748413099149,0.80369207,108770.0,108760.0,0.7339673]
[1748413099348,0.80369207,108770.0,108760.0,0.6774767]
[1748413102347,0.80369207,108770.0,108760.0,0.6773167]
[1748413104850,0.80369207,108770.0,108760.0,0.8611165]
[1748413106254,0.80370892,108770.0,108760.0,0.8611165]
[1748413107545,0.80370892,108770.0,108760.0,0.6773167]
[1748413107948,0.8037833,108770.0,108760.0,0.6773167]
[1748413109058,0.8037833,108770.0,108760.0,0.8611166]
[1748413110657,0.80378524,108770.0,108760.0,0.8611166]
[1748413111264,0.80378524,108770.0,108760.0,0.98281059]
[1748413111449,0.80378524,108770.0,108760.0,1.01081059]
[1748413111944,0.80378524,108770.0,108760.0,1.04081059]
[1748413112145,0.80378524,108770.0,108760.0,1.09730119]
[1748413112459,0.80378524,108770.0,108760.0,1.01546313]
[1748413112852,0.80378524,108770.0,108760.0,1.01534313]
[1748413113151,0.80378524,108770.0,108760.0,1.13703712]
[1748413113352,0.80378524,108770.0,108760.0,1.01534313]
[1748413114762,0.76285126,108770.0,108760.0,0.96720284]
[1748413114991,0.80378734,108770.0,108760.0,1.01543603]
[1748413115350,0.68209335,108770.0,108760.0,1.01543603]
[1748413115559,0.80378734,108770.0,108760.0,1.01543603]
[1748413115866,0.80378734,108770.0,108760.0,1.10896524]
[1748413116067,0.68209335,108770.0,108760.0,1.23065923]
[1748413116364,0.80378734,108770.0,108760.0,1.10896524]
[1748413116565,0.76285126,108770.0,108760.0,1.10896524]
[1748413116759,0.76285126,108770.0,108760.0,0.98727125]
[1748413117068,0.76285126,108770.0,108760.0,1.10896524]
[1748413117262,0.64115727,108770.0,108760.0,1.10896524]
[1748413117565,0.76285126,108770.0,108760.0,1.10896524]
[1748413117759,0.76285126,108770.0,108760.0,1.07035634]
[1748413118353,0.60965727,108770.0,108760.0,1.07035634]
[1748413118554,0.39397397,108770.0,108760.0,1.13713002]
[1748413118759,0.6186908,108770.0,108760.0,1.08889683]
[1748413119058,0.57775677,108770.0,108760.0,1.08889683]
[1748413119866,0.57775677,108770.0,108760.0,1.09089683]
[1748413120563,0.57775677,108770.0,108760.0,1.2211157]
[1748413120761,0.57775677,108770.0,108760.0,1.19405033]
[1748413120953,0.57775677,108770.0,108760.0,1.23280924]
[1748413121463,0.57775677,108770.0,108760.0,1.23380924]
[1748413123069,0.21695677,108770.0,108760.0,1.23380924]
[1748413123666,0.21695677,108770.0,108760.0,1.23389013]
[1748413124157,0.57775677,108770.0,108760.0,1.23389013]
[1748413125170,0.21695677,108770.0,108760.0,1.23389013]
[1748413125973,0.24865677,108770.0,108760.0,1.23389013]
[1748413131458,0.60945677,108770.0,108760.0,1.28875417]
[1748413131859,0.60945677,108770.0,108760.0,1.19505122]
[1748413132363,0.60945677,108770.0,108760.0,0.56140892]
[1748413132364,0.73115076,108770.0,108760.0,0.56140892]
[1748413132564,0.73115076,108770.0,108760.0,0.32268871]
[1748413132759,0.85284475,108770.0,108760.0,0.32200871]
[1748413132967,0.89374341,108770.0,108760.0,0.02317835]
[1748413133269,0.89373964,108770.0,108760.0,0.679744]
[1748413133463,0.77204565,108770.0,108760.0,0.679624]
[1748413133665,0.77204565,108770.0,108760.0,0.679744]
[1748413133866,0.7814679,108770.0,108760.0,0.679744]
[1748413134967,0.41124565,108770.0,108760.0,0.678744]
[1748413135273,1.13484565,108770.0,108760.0,0.678744]
[1748413135568,1.13684565,108770.0,108760.0,0.676744]
[1748413135964,1.1368583,108770.0,108760.0,0.25082069]
[1748413136172,1.1368583,108770.0,108760.0,0.67670069]
[1748413137766,1.13678433,108770.0,108760.0,0.57610069]
[1748413138074,1.13678433,108770.0,108760.0,0.57622069]
[1748413139567,1.13678433,108770.0,108760.0,0.76002049]
[1748413139868,1.1368583,108770.0,108760.0,0.76002049]
[1748413140065,1.13678433,108770.0,108760.0,0.76002049]
[1748413140273,1.13677355,108770.0,108760.0,0.76000922]
[1748413140976,1.13677355,108770.0,108760.0,0.15028942]
[1748413141280,1.13677355,108770.0,108760.0,0.57620942]
[1748413142466,1.13677355,108770.0,108760.0,0.15028942]
[1748413142666,1.17957593,108770.0,108760.0,0.02017835]
[1748413142875,1.17957593,108770.0,108760.0,0.02005835]
[1748413143074,1.17957593,108770.0,108760.0,0.02017835]
[1748413144174,1.17957593,108770.0,108760.0,0.00644092]
[1748413144474,1.17957593,108770.0,108750.0,0.75772733]
[1748413144475,0.1837998,108760.0,108750.0,0.67089728]
[1748413144669,0.77006452,108760.0,108750.0,0.67089728]
[1748413144975,0.80186452,108760.0,108750.0,0.7102564]
[1748413145368,0.80186452,108760.0,108750.0,0.1838164]
[1748413145564,0.80186452,108760.0,108750.0,0.7102564]
[1748413145765,0.68015041,108760.0,108750.0,0.52644]
[1748413145966,0.80186452,108760.0,108750.0,0.7102567]
[1748413146771,0.80186452,108760.0,108750.0,0.2843367]
[1748413146972,0.80186452,108760.0,108750.0,0.7242942]
[1748413147466,0.76098788,108760.0,108750.0,0.7242942]
[1748413149674,0.76098788,108760.0,108750.0,0.7242942]
[1748413150579,1.12178788,108760.0,108750.0,0.7242942]
[1748413152073,1.12178788,108760.0,108750.0,0.1978542]
[1748413152281,1.12178788,108760.0,108750.0,0.7242942]
[1748413152472,1.12178788,108760.0,108750.0,0.5404775]
[1748413152672,1.12178788,108760.0,108750.0,0.7242942]
[1748413153671,1.16261805,108760.0,108750.0,0.7242942]
[1748413153875,1.12178788,108760.0,108750.0,0.7242942]
[1748413157771,0.40018788,108760.0,108750.0,0.7242942]
[1748413157969,1.12179043,108760.0,108750.0,0.7242942]
[1748413158178,1.12179043,108760.0,108750.0,0.1978542]
[1748413158374,1.00007377,108760.0,108750.0,0.7242942]
[1748413158576,1.12179043,108760.0,108750.0,0.7242942]
[1748413158778,1.12179043,108760.0,108750.0,0.7522942]
[1748413158976,1.12179043,108760.0,108750.0,0.5684775]
[1748413159377,1.12179043,108760.0,108750.0,0.7522942]
[1748413159578,1.12179043,108760.0,108750.0,0.75677629]
[1748413161584,1.16265783,108760.0,108750.0,0.75677629]
[1748413162486,1.12179043,108760.0,108750.0,0.75677629]
[1748413163691,1.12179043,108760.0,108750.0,0.78887629]
[1748413163889,1.00007377,108760.0,108750.0,0.91059295]
[1748413164080,1.12179043,108760.0,108750.0,0.91059295]
[1748413164788,1.12179043,108760.0,108750.0,0.78887629]
[1748413165789,1.12179043,108760.0,108750.0,0.91059295]
[1748413168893,1.12179043,108760.0,108750.0,1.05248607]
[1748413170697,1.12179043,108760.0,108750.0,0.52604607]
[1748413170896,1.12179043,108760.0,108750.0,1.05248607]
[1748413171386,1.12179043,108760.0,108750.0,0.93076941]
[1748413171998,1.12379043,108760.0,108750.0,0.93076941]
[1748413172593,1.16470656,108760.0,108750.0,0.97566876]
[1748413173289,1.16670656,108760.0,108750.0,0.97566876]
[1748413173799,1.16670656,108760.0,108750.0,0.97567889]
[1748413174092,0.29139244,108760.0,108750.0,0.96718599]
[1748413174298,0.61127377,108760.0,108750.0,1.0491717]
[1748413174498,0.61127377,108760.0,108750.0,1.09739535]
[1748413175089,0.60927377,108760.0,108750.0,1.0491717]
[1748413175290,0.60727377,108760.0,108750.0,1.0491717]
[1748413176089,0.57547377,108760.0,108750.0,1.0491717]
[1748413176697,0.69719043,108760.0,108750.0,1.0491717]
[1748413177997,0.03087397,108760.0,108750.0,1.45817209]
[1748413178200,0.03087397,108760.0,108750.0,1.55061671]
[1748413178501,0.21467377,108760.0,108750.0,1.55061671]
[1748413178690,0.21467377,108760.0,108750.0,1.18981671]
[1748413178890,0.03087397,108760.0,108750.0,1.18981671]
[1748413179094,0.03087397,108760.0,108750.0,1.12316247]
[1748413181402,0.03087397,108760.0,108750.0,1.12516247]
[1748413181593,0.03087397,108760.0,108750.0,1.48596247]
[1748413181793,0.03087397,108760.0,108750.0,1.48696247]
[1748413182401,0.03087397,108760.0,108750.0,1.48689655]
[1748413183295,0.03087397,108760.0,108750.0,1.35623415]
[1748413184200,0.03087397,108760.0,108750.0,0.99543415]
[1748413184407,0.03087397,108760.0,108750.0,1.05191463]
[1748413184800,0.21467367,108760.0,108750.0,1.05191463]
[1748413185106,0.33639033,108760.0,108750.0,1.05191463]
[1748413186913,0.33639033,108760.0,108750.0,1.05183463]
[1748413187097,0.36739033,108760.0,108750.0,1.05183463]
[1748413188710,0.24567367,108760.0,108750.0,1.05183463]
[1748413188914,0.36739033,108760.0,108750.0,1.05183463]
[1748413189410,0.36739033,108760.0,108750.0,0.99535415]
[1748413191508,0.36739033,108760.0,108750.0,1.04348237]
[1748413192613,0.36739033,108760.0,108750.0,0.99535415]
[1748413193215,0.36739033,108760.0,108750.0,1.05526245]
[1748413193417,0.36739033,108760.0,108750.0,1.1260103]
[1748413194412,0.36739033,108760.0,108750.0,1.05183651]
[1748413194614,0.36739033,108760.0,108750.0,1.05179651]
[1748413194814,0.40059033,108760.0,108750.0,0.53607985]
[1748413195011,0.40059033,108760.0,108750.0,1.08359651]
[1748413196719,0.40059033,108760.0,108750.0,1.08359651]
[1748413199915,0.40059033,108760.0,108750.0,1.0271099]
[1748413203021,0.40059033,108760.0,108750.0,0.9953099]
[1748413203219,0.40059033,108760.0,108750.0,0.58556258]
[1748413203421,0.76139033,108760.0,108750.0,0.81357324]
[1748413203616,0.63967367,108760.0,108750.0,0.5095299]
[1748413203820,0.76139033,108760.0,108750.0,0.9352899]
[1748413204422,0.76139033,108760.0,108750.0,0.97235348]
[1748413204617,0.76139033,108760.0,108750.0,0.85063682]
[1748413205122,0.76139033,108760.0,108750.0,0.77988897]
[1748413205327,0.76139033,108760.0,108750.0,0.90160563]
[1748413205826,0.76139033,108760.0,108750.0,0.98344986]
[1748413206027,0.76139033,108760.0,108750.0,0.85051682]
[1748413206224,0.76139033,108760.0,108750.0,0.85063682]
[1748413206819,0.76139033,108760.0,108750.0,0.97235348]
[1748413207519,0.76139033,108760.0,108750.0,1.06597476]
[1748413208535,0.76139033,108760.0,108750.0,0.97235348]
[1748413208722,0.76139033,108760.0,108750.0,1.06597476]
[1748413209623,0.76139033,108760.0,108750.0,1.06589476]
[1748413211119,0.76139033,108760.0,108750.0,0.53969476]
[1748413211424,0.76139033,108760.0,108750.0,1.06589476]
[1748413211731,0.76139033,108760.0,108750.0,0.97227348]
[1748413212432,0.76139033,108760.0,108750.0,0.97346609]
[1748413212623,0.63967367,108760.0,108750.0,0.97346609]
[1748413212829,0.76139033,108760.0,108750.0,0.97346609]
[1748413214019,0.63967367,108760.0,108750.0,0.97346609]
[1748413214532,0.76139033,108760.0,108750.0,0.97346609]
[1748413215231,0.40059033,108760.0,108750.0,0.97046609]
[1748413215430,0.76139033,108760.0,108750.0,0.97046609]
[1748413215839,0.76139033,108760.0,108750.0,0.99846609]
[1748413216831,0.40059033,108760.0,108750.0,1.09208737]
[1748413218227,0.40059033,108760.0,108750.0,1.12298737]
[1748413220040,0.76139033,108760.0,108750.0,0.97037071]
[1748413220336,0.76139033,108760.0,108750.0,1.06408737]
[1748413220924,0.76139033,108760.0,108750.0,0.94237071]
[1748413221130,0.76139033,108760.0,108750.0,1.06408737]
[1748413222834,0.76139033,108760.0,108750.0,1.06409135]
[1748413223341,0.40059033,108760.0,108750.0,1.06409135]
[1748413223536,0.40059033,108760.0,108750.0,1.09209135]
[1748413225041,0.40059033,108760.0,108750.0,1.09209525]